Cogmind - Beta 14 @@@ ROGUE MODE // 2024.08.12 @ 13:02:17 Player: APerTAS Result: Destroyed by P-60 Hacker with Shock Rifle Performance ------------- Evolutions (3) 1500 Regions Visited (6) 1200 Robots Destroyed (2) 10 Value Destroyed (56) 56 Prototype IDs (0) 0 Alien Tech Used (0) 0 Bonus (470) 470 TOTAL SCORE: 3236 Bonus ------- Pacifist 470 Cogmind --------- Core Integrity 0/700 Matter 300/300 Energy 100/100 System Corruption 4% Temperature Hot (243) Movement Core (50) Location -7/Lower Caves Parts ------- > --- POWER (1) -------- (None) > --- PROPULSION (2) --- (None) > --- UTILITY (2) ------ (None) > --- WEAPON (8) ------- (None) > --- INVENTORY (5) ---- (None) Peak State ------------ > --- POWER ------------ (None) > --- PROPULSION ------- Armored Treads > --- UTILITY ---------- (None) > --- WEAPON ----------- (None) > --- INVENTORY -------- (None) [Rating: 3] Favorites ----------- Power None Propulsion Armored Treads Treads Armored Treads Utility Light Armor Plating Protection Light Armor Plating Weapon None Build | -11 -10 -10 -9 -8 -7 -7 ------- Run | Yrd Mat Min Mat Mat Fac Low Slots Evolved 6 | . . . 2 2 2 . Power . | . . . . . . . Propulsion . | . . . . . . . Utility . | . . . . . . . Weapon 6 | . . . 2 2 2 . Parts Attached 2 | . 1 . . . . 1 Power . | . . . . . . . Engine . | . . . . . . . Core . | . . . . . . . Reactor . | . . . . . . . Propulsion 1 | . . . . . . 1 Treads 1 | . . . . . . 1 Leg . | . . . . . . . Wheel . | . . . . . . . Hover . | . . . . . . . Flight . | . . . . . . . Utility 1 | . 1 . . . . . Device . | . . . . . . . Storage . | . . . . . . . Processor . | . . . . . . . Hackware . | . . . . . . . Protection 1 | . 1 . . . . . Artifact . | . . . . . . . Weapon . | . . . . . . . Energy Gun . | . . . . . . . Energy Cannon . | . . . . . . . Ballistic Gun . | . . . . . . . Ballistic Cannon . | . . . . . . . Launcher . | . . . . . . . Special Weapon . | . . . . . . . Impact Weapon . | . . . . . . . Slashing Weapon . | . . . . . . . Piercing Weapon . | . . . . . . . Special Melee Weapon . | . . . . . . . Unidentified Prototypes . | . . . . . . . Parts Lost 2 | . . 1 . . . 1 Power . | . . . . . . . Propulsion 1 | . . . . . . 1 Utility 1 | . . 1 . . . . Weapon . | . . . . . . . Highest Loss Streak 1 | . . 1 . . . 1 To Critical Strikes . | . . . . . . . Average Slot Usage (%) . | . 4 6 . . . . Peak Build Rating 3 | . 1 1 . . . 3 Average Rating . | . . . . . . . On Entrance . | . . 1 . . . . Naked Turns 578 | . 24 46 121 74 215 98 Heaviest Build 3 | . 3 3 . . . . Greatest Support 20 | 3 3 3 3 3 3 20 Greatest Overweight (x) . | . . . . . . . Average Overweight (x) . | . . . . . . . Largest Inventory Capacity 5 | 5 5 5 5 5 5 5 Average Capacity 5 | 5 5 5 5 5 5 5 Most Carried . | . . . . . . . Average Carried . | . . . . . . . Final Capacity 5 | 5 5 5 5 5 5 5 Final Carried . | . . . . . . . Class Distribution -------------------- 100% | Mutant Dominant Class ---------------- Mutant | -10/Materials Mutant | -10/Mines Mutant | -9/Materials Mutant | -8/Materials Mutant | -7/Factory Mutant | -7/Lower Caves Resources | -11 -10 -10 -9 -8 -7 -7 ----------- Run | Yrd Mat Min Mat Mat Fac Low Matter Collected 181 | 127 . . . 54 . . Remotely . | . . . . . . . Salvage Created 76 | . . . . 46 30 . Parts 4 | . . . . 1 3 . Haulers Intercepted . | . . . . . . . Recyclers Shooed . | . . . . . . . Parts Field Recycled . | . . . . . . . Retrieved Matter . | . . . . . . . Parts Self-Destructed . | . . . . . . . Prevented . | . . . . . . . Kills | -11 -10 -10 -9 -8 -7 -7 ------- Run | Yrd Mat Min Mat Mat Fac Low Combat Hostiles Destroyed 1 | . . . . 1 . . Classes Destroyed 2 | . . . . 1 1 . Worker 1 | . . . . . 1 . Hunter 1 | . . . . 1 . . Best Kill Streak 1 | . . . . 1 1 . Combat Bots Only 1 | . . . . 1 . . Max Kills in Single Turn 1 | . . . . 1 1 . Gunslinging . | . . . . . . . Exploded . | . . . . . . . Melee . | . . . . . . . Uniques/NPCs Destroyed . | . . . . . . . Combat | -11 -10 -10 -9 -8 -7 -7 -------- Run | Yrd Mat Min Mat Mat Fac Low Hostile Shots Fired 210 | . 12 42 21 65 2 68 Missed 67 | . 3 18 8 21 1 16 Damage Taken 1900 | . 70 222 158 509 32 909 Core 1567 | . 29 166 158 509 32 673 Absorbed by Shields . | . . . . . . . Core Remaining (%) 47 | 100 . 22 60 7 . . Volleys Fired . | . . . . . . . Largest . | . . . . . . . Hottest . | . . . . . . . Shots Fired . | . . . . . . . Gun . | . . . . . . . Cannon . | . . . . . . . Launcher . | . . . . . . . Special . | . . . . . . . Kinetic . | . . . . . . . Thermal . | . . . . . . . Explosive . | . . . . . . . Electromagnetic . | . . . . . . . Robot Hit Streak . | . . . . . . . Robot Miss Streak . | . . . . . . . Penetration Max . | . . . . . . . Secondary Targets . | . . . . . . . Shots Hit Robots . | . . . . . . . Core Hits 6 | . . 1 1 1 1 2 Critical Kills . | . . . . . . . Critical Parts Destroyed . | . . . . . . . Critical Strikes . | . . . . . . . Melee Attacks . | . . . . . . . Impact . | . . . . . . . Slashing . | . . . . . . . Piercing . | . . . . . . . Sneak Attacks . | . . . . . . . Combat Hostiles . | . . . . . . . Follow-up Attacks . | . . . . . . . Damage Inflicted 223 | . . 39 4 87 23 70 Guns . | . . . . . . . Cannons . | . . . . . . . Explosions . | . . . . . . . Melee . | . . . . . . . Ramming 223 | . . 39 4 87 23 70 Kinetic . | . . . . . . . Thermal . | . . . . . . . Explosive . | . . . . . . . Electromagnetic . | . . . . . . . Impact . | . . . . . . . Slashing . | . . . . . . . Piercing . | . . . . . . . Highest Corruption 4 | . . . . 1 . 4 Average Corruption 1 | . . . . 1 . 2 Corruption Purged . | . . . . . . . Corruption Blocked . | . . . . . . . Effects 2 | . . . . . . 2 Heat Flow Errors 1 | . . . . . . 1 Data Loss (major) 1 | . . . . . . 1 Overload Shots . | . . . . . . . Overflow Damage 2 | . . . . 2 . . Projectiles . | . . . . . . . Explosions . | . . . . . . . Melee 2 | . . . . 2 . . Knockbacks 2 | . . . . 2 . . Impact 2 | . . . . 2 . . Kinetic . | . . . . . . . Secondary . | . . . . . . . Self-Inflicted Damage 103 | . . 18 2 41 11 31 Shots . | . . . . . . . Rammed 50 | . . 8 1 11 2 28 Targets Rammed 50 | . . 8 1 11 2 28 Kicked . | . . . . . . . Crushed . | . . . . . . . Highest Temperature 243 | . . . . 5 . 243 Average Temperature 124 | . . . . 5 . 243 Received Heat Transfer 225 | . . . 36 135 . 54 Siege Activations . | . . . . . . . Robots Corrupted 1 | . . . . 1 . . Combat Hostiles 1 | . . . . 1 . . Parts Fried 1 | . . . . 1 . . Impact Corruptions 1 | . . . . 1 . . Robots Melted . | . . . . . . . Combat Hostiles . | . . . . . . . Parts Melted . | . . . . . . . Heat Transferred . | . . . . . . . Parts Sabotaged . | . . . . . . . Parts Stolen . | . . . . . . . Parts Stripped . | . . . . . . . Power Chain Reactions . | . . . . . . . Alert | -11 -10 -10 -9 -8 -7 -7 ------- Run | Yrd Mat Min Mat Mat Fac Low Peak Influence 237 | . . 110 237 190 142 . Initial 100 | . . . 42 100 86 . Average 96 | . . 46 133 132 98 . Maximum Alert Level 1 | . . . 1 . . . Low Security (%) 92 | 100 100 100 66 100 100 . Level 1 7 | . . . 33 . . . Level 2 . | . . . . . . . Level 3 . | . . . . . . . Level 4 . | . . . . . . . Level 5 . | . . . . . . . High Security . | . . . . . . . Max Security . | . . . . . . . Squads Dispatched 6 | . 1 . 1 1 3 . Investigation 2 | . 1 . . . 1 . Extermination . | . . . . . . . Reinforcement 4 | . . . 1 1 2 . Assault . | . . . . . . . Garrison . | . . . . . . . Intercept . | . . . . . . . Searches Triggered . | . . . . . . . Construction Impeded . | . . . . . . . Haulers Reinforced . | . . . . . . . Active Scanning Responses . | . . . . . . . Cargo Convoy Interrupts . | . . . . . . . Stealth | -11 -10 -10 -9 -8 -7 -7 --------- Run | Yrd Mat Min Mat Mat Fac Low Distress Signals 3 | . . . 3 . . . Communications Jammed . | . . . . . . . Distress Signals . | . . . . . . . Times Spotted 45 | . 4 11 11 11 3 5 Peak Tracking Total 9 | . 5 3 9 8 1 5 Tactical Retreats 11 | . . 4 4 1 . 2 Traps | -11 -10 -10 -9 -8 -7 -7 ------- Run | Yrd Mat Min Mat Mat Fac Low Traps Triggered 4 | . 3 . . 1 . . Indirectly . | . . . . . . . Trap Hack Attempts . | . . . . . . . Triggered . | . . . . . . . Disarmed . | . . . . . . . Reprogrammed . | . . . . . . . Reused . | . . . . . . . Traps Extracted . | . . . . . . . Installed . | . . . . . . . Triggered 1 | . . . . . . 1 Machines | -11 -10 -10 -9 -8 -7 -7 ---------- Run | Yrd Mat Min Mat Mat Fac Low Machines Disabled . | . . . . . . . Max in Single Turn . | . . . . . . . Machines Repaired . | . . . . . . . Machines Dismantled . | . . . . . . . Machines Sabotaged . | . . . . . . . Overloaded Fab Kills . | . . . . . . . Hacking | -11 -10 -10 -9 -8 -7 -7 --------- Run | Yrd Mat Min Mat Mat Fac Low Machines Accessed 2 | . . . . . 1 1 Terminals 1 | . . . . . 1 . Fabricators . | . . . . . . . Repair Stations . | . . . . . . . Recycling Units . | . . . . . . . Scanalyzers . | . . . . . . . Garrison Access . | . . . . . . . Total Hacks 4 | . . . . . 3 1 Successful 2 | . . . . . 1 1 Failed 2 | . . . . . 2 . Catastrophic 1 | . . . . . 1 . Database Lockouts . | . . . . . . . Manual . | . . . . . . . Terminals 3 | . . . . . 3 . Fabricators . | . . . . . . . Repair Stations . | . . . . . . . Recycling Units . | . . . . . . . Scanalyzers . | . . . . . . . Garrison Access . | . . . . . . . Terminal Hacks 2 | . . . . . 1 1 Record 1 | . . . . . 1 . Open Door 1 | . . . . . . 1 Fabricator Hacks . | . . . . . . . Repair Station Hacks . | . . . . . . . Recycling Unit Hacks . | . . . . . . . Scanalyzer . | . . . . . . . Garrison Access Hacks . | . . . . . . . Unauthorized Hacks . | . . . . . . . Terminals . | . . . . . . . Fabricators . | . . . . . . . Repair Stations . | . . . . . . . Recycling Units . | . . . . . . . Scanalyzers . | . . . . . . . Garrison Access . | . . . . . . . Data Cores Recovered . | . . . . . . . Used . | . . . . . . . Hacking Detections 1 | . . . . . 1 . Full Trace Events 1 | . . . . . 1 . Feedback Events . | . . . . . . . Feedback Blocked . | . . . . . . . Robot Schematics Acquired . | . . . . . . . Robots Built . | . . . . . . . Authchips . | . . . . . . . Time . | . . . . . . . Total Robot Build Rating . | . . . . . . . Part Schematics Acquired . | . . . . . . . Parts Built . | . . . . . . . Authchips . | . . . . . . . Time . | . . . . . . . Total Part Build Rating . | . . . . . . . Parts Repaired . | . . . . . . . Time . | . . . . . . . Parts Recycled . | . . . . . . . Recycled Matter . | . . . . . . . Retrieved Matter . | . . . . . . . Retrieved Components . | . . . . . . . Parts Scanalyzed . | . . . . . . . Part Schematics Acquired . | . . . . . . . Parts Damaged . | . . . . . . . Bothacking | -11 -10 -10 -9 -8 -7 -7 ------------ Run | Yrd Mat Min Mat Mat Fac Low Used RIF Installer . | . . . . . . . Robots Hacked . | . . . . . . . Non-combat . | . . . . . . . Combat . | . . . . . . . Robot Hacks Applied . | . . . . . . . Relay Couplers Released . | . . . . . . . Fabnet Peak Effective % . | . . . . . . . Robots Rewired . | . . . . . . . Allies Hacked . | . . . . . . . Hacks Repelled . | . . . . . . . Allies | -11 -10 -10 -9 -8 -7 -7 -------- Run | Yrd Mat Min Mat Mat Fac Low Total Allies . | . . . . . . . Largest Group . | . . . . . . . Highest-Rated Group . | . . . . . . . Highest-Rated Ally . | . . . . . . . Total Orders . | . . . . . . . Ally Attacks . | . . . . . . . Total Damage . | . . . . . . . Kills . | . . . . . . . Allies Corrupted . | . . . . . . . Allies Melted . | . . . . . . . Intel | -11 -10 -10 -9 -8 -7 -7 ------- Run | Yrd Mat Min Mat Mat Fac Low Robot Analysis Total . | . . . . . . . Derelict Logs Recovered . | . . . . . . . Drone Launches . | . . . . . . . Drone Recoveries . | . . . . . . . Exploration | -11 -10 -10 -9 -8 -7 -7 ------------- Run | Yrd Mat Min Mat Mat Fac Low Turns Passed 631 | 9 35 73 121 74 215 104 Spaces Moved 1145 | 18 66 130 239 125 425 142 Core 1144 | 18 66 130 239 125 425 141 Treads 1 | . . . . . . 1 Legs . | . . . . . . . Wheels . | . . . . . . . Hover . | . . . . . . . Flight . | . . . . . . . Fastest Speed 50 | 50 50 50 50 50 50 50 Average Speed 50 | 50 50 50 50 50 50 50 Slowest Speed 170 | 50 50 50 50 50 50 170 Overloaded Moves . | . . . . . . . Propulsion Burnouts . | . . . . . . . Robots Hopped . | . . . . . . . Cave-ins Triggered . | . . . . . . . Exploration Rate (%) 22 | 4 18 37 45 21 17 18 Regions Visited 6 Branch Regions 2 Pre-discovered Areas . | . . . . . . . Known Exits Taken . | . . . . . . . Unknown Exits Taken 6 | 1 1 1 1 1 1 . Scrap Searched . | . . . . . . . Spaces Dug . | . . . . . . . Terrain Destroyed . | . . . . . . . Melee . | . . . . . . . Projectile . | . . . . . . . AOE . | . . . . . . . Terrain Rammed . | . . . . . . . Walls Destroyed . | . . . . . . . Machines Disabled . | . . . . . . . Actions | -11 -10 -10 -9 -8 -7 -7 --------- Run | Yrd Mat Min Mat Mat Fac Low Total 1191 | 17 66 137 239 135 426 171 Wait . | . . . . . . . Move 1139 | 17 65 129 238 124 424 142 Hop . | . . . . . . . Pick Up . | . . . . . . . Fast Attach 2 | . 1 . . . . 1 Attach . | . . . . . . . Detach . | . . . . . . . Swap . | . . . . . . . Drop . | . . . . . . . Fire . | . . . . . . . Melee . | . . . . . . . Ram 48 | . . 8 1 11 2 26 Kick . | . . . . . . . Crush 2 | . . . . . . 2 Escape Stasis . | . . . . . . . Rewire . | . . . . . . . Trap . | . . . . . . . Miscellaneous . | . . . . . . . Route ------- -11/Scrapyard -10/Materials -10/Mines -9/Materials -8/Materials -7/Factory -7/Lower Caves History --------- Turn | Location | Event 3 | -11/Scrapyard | Discovered new exit (range 15) 10 | -11/Scrapyard | Entered Materials 41 | -10/Materials | Discovered new exit (range 7) 45 | -10/Materials | Entered Mines 97 | -10/Mines | Received a Rocket Launcher from a helpful Derelict 99 | -10/Mines | Core integrity fell below 50% 114 | -10/Mines | Discovered new exit (range 8) 118 | -10/Mines | Entered Materials 118 | -9/Materials | Evolved 2 slots: Weapon x2 231 | -9/Materials | Discovered new exit (range 15) 239 | -9/Materials | Entered another Materials area 239 | -8/Materials | Evolved 2 slots: Weapon x2 291 | -8/Materials | Core integrity fell below 50% 302 | -8/Materials | Build established: Mutant 305 | -8/Materials | Discovered new exit (range 16) 309 | -8/Materials | Core integrity fell below 20% 313 | -8/Materials | Entered Factory 313 | -7/Factory | Evolved 2 slots: Weapon x2 520 | -7/Factory | Discovered new exit (range 16) 528 | -7/Factory | Entered Lower Caves 609 | -7/Lower Caves | Core integrity fell below 50% 625 | -7/Lower Caves | Core integrity fell below 20% 632 | -7/Lower Caves | Destroyed by P-60 Hacker with Shock Rifle Last Messages --------------- 00571_ Y-64 Sentinel: "ENEMY REINFORCEMENTS INCOMING." 00571_ Acquired Arm. Treads. 00572_ Slammed into P-60 Hacker. 00573_ Penetrated by Slug. 00574_ Slammed into P-60 Hacker. 00576_ Penetrated by Slug. 00576_ WAR.Sys disabled. 00577_ Arm. Treads destroyed. 00577_ Machine disabled. 00578_ Penetrated by Slug. 00582_ WAR.Sys disabled. 00583_ System corrupted: Substantial component data lost. 00602_ Slammed into P-60 Hacker. 00607_ Destabilizing: System corrupted (+1). 00608_ Slammed into P-60 Hacker. 00623_ Destabilizing: Core damaged (-7). 00624_ Slammed into P-60 Hacker. 00624_ Destabilizing: Core damaged (-28). 00625_ Slammed into P-60 Hacker. 00631_ System corrupted: Heat flow error (+277). Map ----- +----------------------------------------------------+ | ?????????????????????????????????????????????????? | | ?????????????????????????????????????????????????? | | ?????????????????????????????????????????????????? | | ?????????????????????????????????????????????????? | | ?????????????????????????????????????????????????? | | ?????????????????????????????????????????????????? | | ?????????????????????????????????????????????????? | | ?????????????????????????????????????????????????? | | ???????????????????#####????####?????????###?????? | | ???????????????????# ##### #????????? ####### | | ???????????????????? ## ?#####??## | | ?????????????????????# ### #??# | | ???????????????????????# ## #??# | | ????????????????????????# #?## | | ???????????????????????## #### | | ????????????????????#### # #? | | ???????????????????## ####### ###??# | | ???????????????????# ##"""""### ##### | | ???????????????????# % #"" | ## | | ???????????????????## %%##" "## | | ????????????????????## #%#"" ###"## | | ?????????????????????####%#" # #### ## | | ????????????????????????#%#" ##? | | ????????????????????????#%#" ###### #?? | | ????????????????????????#%#"" ????# #?? | | ????????????????????????#@##"" ???## ##?? | | ????????????????????????#%%##"""""??## ##??? | | ????????????????????????#%p%######### #???? | | ????????????????????????#% p ##??? | | ????????????????????????# # #### | | ????????????????????????######### | | ????????????????????????????????## | | ?????????????????????????????????# ### | | ?????????????????????????????????# ##?? | | ?????????????????????????????????## ##??? | | ??????????????????????????????????## ##???# | | ???????????????????????????????????### ####### | | ???????????????????????????????####### ### | | ???????????????????????????????# ##? # | | ?????????????????????????####### ##??# ### | | ????????????????????????## ##### ## | | ???????????????????????## # | | ???????????????????????# | | ???????????????????????## ## ######## | | ????????????????????????### #### ####??????### | | ??????????????????????????#####??####???????????## | | ?????????????????????????????????????????????????? | | ?????????????????????????????????????????????????? | | ?????????????????????????????????????????????????? | | ?????????????????????????????????????????????????? | +----------------------------------------------------+ Best States ------------- Heat Dissipation 34 Energy Generation 5 Energy Capacity 100 Matter Stores 300 Matter Capacity 300 Sight Range 16 Terrain Scan Density 10 Armor Coverage 150 Evasion (%) 50 Item Schematics ----------------- None Robot Schematics ------------------ None Fabricated ------------ Nothing Alien Tech Used ----------------- None Achievements -------------- None Challenges ------------ None Game ------ Seed TowerSwordScrap Manual? 0 Play Time 00:06:47 Cumulative 20.7 hours Start 2024.08.12 @ 12:56:27 End 2024.08.12 @ 13:02:17 Sessions 1 Manual Loads 0 Difficulty Rogue Special Mode None Game No. 99 Rogue 99 Adventurer 0 Explorer 0 Win Type - Total 0 Types 0/0/0/0/0/0/0/0/0 Lore% 32 Gallery% 24 Achievement% 32 Wizard Run 0 Options --------- Layout 0 ASCII 0 Keyboard 0 Movement Arrows Keybinds 0 Fullscreen 2 Font 18/Terminus Map View 76x50 Zoom Use 0% Tactical HUD 1 Map Filters NONE Filters NONE Steam 1 RUN: 7cb6f690-510e-4af9-a238-62c5c8a95794